Workbook

Sheet NSU
B1: Veera Varonen | E1: 7.1.2005 Kitee
B2: SUPERPESIS | E2: RUNKOSARJA | I2: Kärkilyönnit (KL), pesänvälit | Q2: Runkosarja | U2: Ylempi loppusarja | Z2: Alempi loppusarja | AG2: Arvo-ottelut ja mitalit
B3: Vuosi | C3: Sija | D3: Seura | E3: OTT | F3: KUN | G3: LÖI | H3: TOI | I3: KL | J3: 0 > 1 | K3: 1 > 2 | L3: 2 > 3 | M3: 3 > k | N3: KL-% | P3: LÖI | Q3: TOI | R3: L+T | S3: KL | U3: OTT | V3: KUN | W3: LÖI | X3: TOI | Y3: KL | Z3: OTT | AA3: KUN | AB3: LÖI | AC3: TOI | AD3: KL | AE3: IL | AF3: LL | AG3: Halli | AH3: K | AI3: H | AJ3: P
B4: 2020 | D4: JoMa 2 | F4: suomensarja
B5: 2021 | D5: JoMa 2 | F5: suomensarja
B6: 2021 | C6: 9. | D6: JoMa | E6: 3 | F6: 0 | G6: 0 | H6: 0 | I6: 8 | J6: 4 | K6: 3 | L6: 1 | M6: 0 | N6: 47.1 % | O6: 17
B7: 2022 | C7: 9. | D7: JoMa | E7: 17 | F7: 1 | G7: 0 | H7: 10 | I7: 40 | J7: 36 | K7: 1 | L7: 2 | M7: 1 | N7: 47.6 % | O7: 84
B8: 2023 | C8: 6. | D8: JoMa | E8: 24 | F8: 3 | G8: 2 | H8: 19 | I8: 72 | J8: 57 | K8: 4 | L8: 6 | M8: 5 | N8: 64.9 % | O8: 111 | U8: 5 | V8: 0 | W8: 0 | X8: 2 | Y8: 11
B9: 2024 | C9: 6. | D9: JoMa | E9: 24 | F9: 1 | G9: 1 | H9: 9 | I9: 88 | J9: 70 | K9: 12 | L9: 4 | M9: 2 | N9: 59.1 % | O9: 149 | U9: 4 | V9: 0 | W9: 0 | X9: 1 | Y9: 12
B10: Yhteensä | E10: =SUM(E4:E9) -> 68 | F10: 5 | G10: 3 | H10: 38 | I10: 208 | J10: 167 | K10: 20 | L10: 13 | M10: 8 | N10: =PRODUCT(I10/O10) -> 57.6 % | O10: =SUM(O4:O9) -> 361 | U10: =SUM(U4:U9) -> 9 | V10: 0 | W10: 0 | X10: 3 | Y10: 23 | Z10: 0 | AA10: 0 | AB10: 0 | AC10: 0 | AD10: 0 | AE10: 0 | AF10: 0 | AG10: 0 | AH10: 0 | AI10: 0 | AJ10: 0
B11: Pesispörssi | D11: =SUM(F10:H10)+((I10-F10-G10)/3)+(E10/3)+(AE10*25)+(AF10*25)+(AG10*10)+(AH10*25)+(AI10*20)+(AJ10*15) -> 135.3
B13: URA SUPERISSA | E13: OTT | F13: KUN | G13: LÖI | H13: TOI | I13: KL | K13: ka/L | L13: ka/T | M13: ka/KL | N13: K - % | P13: ENSIMMÄISET
B14: Runkosarja | E14: =PRODUCT(E10) -> 68 | F14: =PRODUCT(F10) -> 5 | G14: =PRODUCT(G10) -> 3 | H14: =PRODUCT(H10) -> 38 | I14: =PRODUCT(I10) -> 208 | K14: =PRODUCT((F14+G14)/E14) -> 0.12 | L14: =PRODUCT(H14/E14) -> 0.56 | M14: =PRODUCT(I14/E14) -> 3.06 | N14: =PRODUCT(N10) -> 57.6 % | O14: =PRODUCT(O10) -> 361 | P14: Ottelu | R14: 02.07. 2021 Kirittäret - JoMa 2-0 (4-0, 19-1) | AC14: 1. ottelu | AF14: 16 v 5 kk 25 pv
B15: Ylempi loppusarja | E15: =PRODUCT(U10) -> 9 | F15: =PRODUCT(V10) -> 0 | G15: 0 | H15: 3 | I15: 23 | K15: =PRODUCT((F15+G15)/E15) -> 0.00 | L15: =PRODUCT(H15/E15) -> 0.33 | M15: =PRODUCT(I15/E15) -> 2.56 | N15: =PRODUCT(I15/O15) -> 42.6 % | O15: 54 | P15: Lyöty | R15: 22.06. 2022 Tahko - JoMa 1-0 (3-1, 6-6) | AC15: 7. ottelu | AF15: 17 v 5 kk 15 pv
B16: Alempi loppusarja | P16: Tuotu | R16: 11.06. 2022 SMJ - JoMa 2-1 (2-0, 1-2, 1-1, 2-1) | AC16: 5. ottelu | AF16: 17 v 5 kk 4 pv
B17: KAIKKI | E17: =SUM(E14:E16) -> 77 | F17: =SUM(F14:F16) -> 5 | G17: =SUM(G14:G16) -> 3 | H17: =SUM(H14:H16) -> 41 | I17: =SUM(I14:I16) -> 231 | K17: =PRODUCT((F17+G17)/E17) -> 0.10 | L17: =PRODUCT(H17/E17) -> 0.53 | M17: =PRODUCT(I17/E17) -> 3.00 | N17: =PRODUCT(I17/O17) -> 55.7 % | O17: =SUM(O14:O16) -> 415 | P17: Kunnari | R17: 22.06. 2022 Tahko - JoMa 1-0 (3-1, 6-6) | AC17: 7. ottelu | AF17: 17 v 5 kk 15 pv
B19: Seurat | D19: KiPa = Kiteen Pallo-90 (1990), kasvattajaseura
D20: JoMa = Joensuun Maila (1957)

Sheet Arvo-ottelut
B1: ITÄ - LÄNSI - KORTTI
B2: Veera Varonen | C2: 7.1.2005 Kitee
B3: B-TYTÖT | C3: Itä - Länsi, tulos | D3: Joukkue | E3: Seura | G3: V | H3: T | I3: H | J3: Up. | K3: Lj. | L3: Palk. | M3: O | N3: K | O3: L | P3: T | Q3: KL | R3: 1 | S3: 2 | T3: 3 | U3: k | V3: KL-% | W3: Pelinjohtaja | X3: Yleisöä
B4: 10.07. 2022 Tampere | C4: 2-1 (0-3, 8-7, 1-1, 2-1) | D4: Itä | E4: JoMa | G4: 1 | J4: 3v | K4: 6 | M4: 1 | P4: 2 | Q4: 2/3 | S4: 2/2 | U4: 0/1 | V4: 66.7 % | W4: Manu Vartia | X4: 856
B5: 29.06. 2024 Jyväskylä | C5: 0-2 (0-3, 0-3) | D5: Itä | E5: JoMa | I5: 1 | J5: 2p | K5: 1 | L5: I p | M5: 1 | Q5: 4/4 | R5: 3/3 | S5: 1/1 | V5: 100.0 % | W5: Jarmo Viittanen | X5: 1422
B6: Yhteensä | G6: 1 | I6: 1 | M6: 2 | Q6: 6/7 | R6: 3/3 | S6: 3/3 | U6: 1/1 | V6: =PRODUCT(6/7) -> 85.7 %
